bitfinex-derivatives/quotes_ETHF0:USTF0_20251226
["timestamp","ask_amount","ask_price","bid_price","bid_amount"]
[1766726684403,0.16849,2970.1,2968.6,0.00239768]
[1766726685699,0.1685,2969.9,2968.6,0.00239768]
[1766726685903,9.098,2970.5,2968.6,0.00239768]
[1766726686221,0.16852,2969.6,2968.6,0.00239768]
[1766726686515,0.0050517,2969.4,2968.6,0.00239768]
[1766726692817,0.0050517,2969.4,2968.0,0.11981991]
[1766726693108,0.0050517,2969.4,2968.0,0.79302398]
[1766726693525,0.16855,2969.2,2968.3,0.79302398]
[1766726693719,0.0050517,2969.4,2968.6,0.79302398]
[1766726693914,0.0050517,2969.4,2968.9,0.79302398]
[1766726694121,0.16851,2969.8,2968.9,0.79302398]
[1766726695025,0.0050517,2969.6,2969.1,0.0050517]
[1766726695228,0.16851,2969.8,2969.1,0.0050517]
[1766726696226,0.0050517,2969.7,2969.1,0.0050517]
[1766726700926,0.16847,2970.4,2969.1,0.79807568]
[1766726701127,0.16847,2970.4,2969.4,0.79302398]
[1766726701728,0.0050517,2970.2,2969.4,0.79302398]
[1766726701929,0.0050517,2970.2,2969.1,0.0050517]
[1766726702129,0.0050517,2970.2,2969.1,0.79807568]
[1766726722443,0.06867,2970.4,2969.4,0.79302398]
[1766726722644,0.16848,2970.4,2969.4,0.79302398]
[1766726723349,0.0050517,2970.2,2969.4,0.79302398]
[1766726727151,0.16848,2970.3,2969.4,0.79302398]
[1766726728158,0.0050517,2970.1,2969.4,0.79302398]
[1766726728358,0.16848,2970.3,2969.4,0.79302398]
[1766726729355,0.00336778,2970.1,2969.4,0.79302398]
[1766726729558,0.16848,2970.3,2969.4,0.79302398]
[1766726748272,0.16848,2970.3,2969.1,0.0050517]
[1766726748473,0.16848,2970.3,2969.3,0.79302398]
[1766726753988,0.16848,2970.3,2969.1,0.0050517]
[1766726769692,0.16849,2970.2,2969.1,0.0050517]
[1766726786510,0.1685,2969.9,2969.1,0.0050517]
[1766726813956,0.1685,2969.9,2969.1,0.79762169]
[1766726815856,0.1685,2969.9,2968.6,0.79531593]
[1766726816856,0.0050517,2969.5,2969.0,0.0050517]
[1766726825858,0.0050517,2969.5,2968.6,0.00274594]
[1766726826160,0.0050517,2969.5,2968.6,0.79531593]
[1766726826858,0.0050517,2969.5,2968.8,0.0050517]
[1766726830067,0.0050517,2969.5,2968.9,0.79256999]
[1766726831259,0.0050517,2969.5,2968.8,0.0050517]
[1766726834872,0.0050517,2969.5,2968.6,0.00274594]
[1766726835873,0.0050517,2969.5,2968.8,0.0050517]
[1766726837370,0.0050517,2969.5,2968.6,0.00274594]
[1766726838274,0.0050517,2969.5,2968.8,0.0050517]
[1766726843681,0.0050517,2969.5,2968.6,4.594e-05]
[1766726844680,0.0050517,2969.5,2968.8,0.0050517]
[1766726855285,0.0050517,2969.5,2968.6,4.594e-05]
[1766726856288,0.0050517,2969.5,2968.8,0.00336778]
[1766726856491,0.1735817,2969.5,2968.8,0.00336778]
[1766726860091,0.1735817,2969.5,2968.6,4.594e-05]
[1766726867190,0.79762169,2969.5,2968.6,4.594e-05]
[1766726867397,0.79256999,2969.2,2967.7,1.4602445]
[1766726867697,0.16857,2968.7,2967.4,0.99138802]
[1766726868287,0.17216323,2968.7,2967.4,0.99495611]
[1766726872700,0.17216323,2968.7,2967.5,0.79256999]
[1766726876001,0.17216323,2968.7,2967.4,0.20238612]
[1766726876401,0.17216323,2968.7,2967.5,0.79345736]
[1766726876596,0.0050517,2969.5,2967.5,0.79345736]
[1766726876597,0.16854,2969.3,2967.5,0.79345736]
[1766726877498,0.17115888,2969.3,2967.5,0.79345736]
[1766726883904,0.17115888,2969.3,2967.9,0.79345736]
[1766726904312,0.17115888,2969.3,2967.8,4.763]
[1766726924411,0.93581755,2969.2,2967.8,4.763]
[1766726924610,0.93584016,2969.1,2967.4,0.99584348]
[1766726924813,0.16855,2969.1,2967.5,4.766]
[1766726934434,9.22855,2969.1,2967.5,4.766]
[1766726937943,9.22855,2969.1,2967.9,0.79319944]
[1766726941149,9.22855,2969.1,2967.5,4.766]
[1766726941344,9.22855,2969.1,2967.8,0.79319944]
[1766726941948,9.26255,2969.1,2968.1,0.79319944]
[1766726945648,0.16855,2969.1,2968.4,0.79319944]
[1766726945855,0.00261888,2969.3,2968.4,0.79319944]
[1766726946056,4.39161888,2969.3,2968.4,0.79319944]
[1766726946251,4.39161888,2969.3,2968.3,0.79319944]
[1766726947450,0.00261888,2969.3,2968.3,0.79319944]
[1766726951350,0.16852,2969.6,2968.3,0.79319944]
[1766726951547,0.16852,2969.6,2968.8,0.79319944]
[1766726952350,0.17165268,2969.6,2968.8,0.79319944]
[1766726952547,0.0050517,2969.5,2968.9,0.0050517]
[1766726961958,0.17165268,2969.6,2968.9,0.0050517]
[1766726962159,40.8,2970.3,2968.9,0.79825114]
[1766726962160,0.16849,2970.2,2968.9,0.79825114]
[1766726962564,3.144,2970.1,2968.9,0.79825114]
[1766726962964,0.0050517,2969.8,2968.9,0.79825114]
[1766726963164,0.00750013,2969.8,2968.9,0.79825114]
[1766726965169,0.00750013,2969.8,2968.9,0.0050517]
[1766726977072,0.00750013,2969.8,2968.9,0.79825114]
[1766726981675,1.3e-07,2969.8,2968.9,0.79825114]
[1766726983992,0.0050517,2969.6,2968.9,0.79825114]
[1766726984888,0.0050517,2969.6,2968.9,0.0050517]
[1766727001206,1.3e-07,2969.8,2968.9,0.0050517]
[1766727002102,0.0050517,2969.6,2968.9,0.0050517]
[1766727024034,1.3e-07,2969.8,2968.9,0.0050517]
[1766727025131,0.00336778,2969.6,2968.9,0.0050517]
[1766727026325,1.3e-07,2969.8,2968.9,0.0050517]
[1766727027632,0.08141596,2970.4,2968.9,0.0050517]
[1766727028734,0.08520622,2970.4,2968.9,0.0050517]
[1766727033337,0.08520622,2970.4,2968.9,4.7590517]
[1766727034736,0.08520622,2970.4,2968.9,0.0050517]
[1766727034942,0.08520622,2970.4,2968.9,4.7610517]
[1766727044351,0.08520622,2970.4,2968.9,4.7800517]
[1766727045141,0.00379026,2970.4,2968.9,4.7800517]
[1766727045849,0.17227026,2970.4,2968.9,4.7800517]
[1766727048454,0.93083269,2970.3,2968.9,0.0050517]
[1766727048649,0.1685,2970.0,2968.9,0.0050517]
[1766727049845,0.79275472,2970.2,2968.9,0.0050517]
[1766727050049,0.93087963,2970.1,2968.9,0.0050517]
[1766727050257,0.93087963,2970.0,2968.9,0.0050517]
[1766727050449,40.8,2970.1,2968.9,0.0050517]
[1766727050645,0.93096756,2970.0,2968.9,0.0050517]
[1766727050846,40.8,2970.1,2968.9,0.0050517]
[1766727051046,0.93101633,2970.0,2968.9,0.0050517]
[1766727051246,40.8,2970.1,2968.9,0.0050517]
[1766727051554,0.16851,2969.8,2968.9,0.0050517]
[1766727060060,0.79296368,2969.7,2968.9,0.0050517]
[1766727060859,0.16851,2969.8,2968.9,0.0050517]
[1766727070578,0.79296368,2969.7,2968.9,0.0050517]
[1766727073973,0.16851,2969.8,2968.9,0.0050517]
[1766727082079,0.79296368,2970.0,2968.9,0.0050517]
[1766727082281,0.17227026,2970.4,2969.0,0.79296368]
[1766727082482,0.93121309,2970.3,2969.0,0.79296368]
[1766727082671,0.93121309,2970.2,2969.0,0.79296368]
[1766727082978,0.17227026,2970.4,2969.0,0.79296368]
[1766727083279,0.93102951,2970.3,2969.0,0.79296368]
[1766727083476,0.93102951,2970.2,2968.9,0.0050517]
[1766727083676,0.00379026,2970.4,2969.3,0.79296368]
[1766727084779,0.00379026,2970.4,2969.0,0.79296368]
[1766727085875,0.00379026,2970.4,2968.9,0.0050517]
[1766727086076,0.00379026,2970.4,2969.0,0.79296368]
[1766727087475,0.79296368,2970.2,2968.9,0.0050517]
[1766727088878,0.17227026,2970.4,2968.9,0.0050517]
[1766727089181,0.96144368,2970.3,2968.9,0.0050517]
[1766727090886,0.79296368,2970.0,2968.9,0.0050517]
[1766727098892,0.79296368,2970.0,2968.2,1.46887632]
[1766727099092,0.79296368,2970.0,2968.3,0.79296368]
[1766727099295,0.16849,2970.1,2968.6,0.79296368]
[1766727099888,0.0050517,2969.6,2969.1,0.0050517]
[1766727107987,0.0050517,2969.6,2968.4,0.79296368]
[1766727109000,0.0050517,2969.6,2968.7,0.0050517]
[1766727116603,0.79801538,2969.6,2968.1,0.1686]
[1766727117710,0.79801538,2969.6,2968.6,0.0050517]
[1766727120002,0.0050517,2969.6,2968.6,0.0050517]
[1766727133719,0.1735717,2969.6,2968.6,0.0050517]
[1766727139122,0.16853,2969.5,2968.6,0.0050517]
[1766727139322,0.16853,2969.5,2967.7,12.87297213]
[1766727139728,0.79808644,2969.6,2967.7,11.33331575]
[1766727139729,0.16854,2969.3,2967.7,11.33331575]
[1766727140025,10.80938753,2969.2,2967.7,11.33331575]
[1766727140213,9.87803474,2969.2,2968.2,0.0050517]
[1766727141010,0.16855,2969.1,2967.4,0.20238612]
[1766727142112,0.16855,2969.1,2968.0,0.0050517]
[1766727143017,40.96855,2969.1,2968.0,0.0050517]
[1766727147319,0.16855,2969.0,2968.0,0.0050517]
[1766727148726,0.16856,2968.9,2968.0,0.0050517]
[1766727153325,0.16853,2969.5,2968.0,0.0050517]
[1766727153524,2.81,2969.4,2968.0,0.0050517]
[1766727160635,2.97853,2969.4,2968.0,0.0050517]
[1766727161032,2.81,2969.4,2968.0,0.0050517]
[1766727161231,0.16856,2968.8,2968.0,0.0050517]
[1766727161533,0.16856,2968.8,2967.4,0.20238612]
[1766727161928,0.16857,2968.7,2967.4,0.20238612]
[1766727162335,0.16857,2968.7,2967.8,0.00336778]
[1766727163732,0.16857,2968.7,2967.4,0.20238612]
[1766727164833,0.16858,2968.6,2967.4,0.20238612]
[1766727165036,9.212,2968.5,2967.4,0.20238612]
[1766727166541,9.38058,2968.5,2967.4,0.20238612]
[1766727169438,9.38058,2968.5,2966.3,0.79303474]
[1766727169644,0.0050517,2967.7,2966.3,0.79303474]
[1766727170552,0.00814715,2967.7,2966.3,0.79693172]
[1766727181963,0.00814715,2967.7,2966.8,0.79373043]
[1766727182964,0.16859,2968.4,2967.1,0.79373043]
[1766727183859,0.0050517,2968.0,2967.5,0.0050517]
[1766727184959,0.0039895,2968.4,2967.5,0.79878213]
[1766727185868,0.0050517,2968.2,2967.5,0.79878213]
[1766727187767,0.0039895,2968.4,2967.5,0.79878213]
[1766727188876,0.0050517,2968.2,2967.5,0.79878213]
[1766727191573,0.0050517,2968.2,2967.5,0.0050517]
[1766727192974,0.0039895,2968.4,2967.6,0.79373043]
[1766727193868,0.0050517,2968.3,2967.6,0.79373043]
[1766727194273,0.0039895,2968.4,2967.6,0.79373043]
[1766727195370,0.0050517,2968.3,2967.5,0.79878213]
[1766727198169,0.0050517,2968.3,2967.5,0.0050517]
[1766727201673,0.0039895,2968.4,2967.5,0.79878213]
[1766727202674,0.00336778,2968.2,2967.5,0.79878213]
[1766727203379,0.0039895,2968.4,2967.5,0.79878213]
[1766727206673,0.16856,2968.9,2967.5,0.79878213]
[1766727207787,0.17224061,2968.9,2967.5,0.0050517]
[1766727209487,0.17224061,2968.9,2967.5,0.79878213]
[1766727209881,0.17224061,2968.9,2967.8,0.79373043]
[1766727210078,0.00368061,2968.9,2968.1,0.79373043]
[1766727210285,0.09930251,2969.2,2968.1,0.79373043]
[1766727211185,0.09930251,2969.2,2967.5,0.1736817]
[1766727211186,0.10166262,2969.2,2968.4,0.79373043]
[1766727211493,0.10166262,2969.2,2968.4,0.7960911]
[1766727212791,0.00236011,2969.2,2968.4,0.7960911]
[1766727213886,0.00236011,2969.2,2968.4,0.00236067]
[1766727222094,0.00236011,2969.2,2968.4,0.7960911]
[1766727222788,0.16853,2969.5,2968.4,0.7960911]
[1766727223899,0.17130511,2969.5,2968.4,0.7960911]
[1766727226006,0.00277511,2969.5,2968.7,0.79373043]
[1766727226187,0.16849,2970.1,2968.7,0.79373043]
[1766727226495,0.16849,2970.1,2969.1,0.0050517]
[1766727227092,0.17093477,2970.1,2969.1,0.0050517]
[1766727228106,0.00244477,2970.1,2969.3,0.79373043]
[1766727232705,0.16846,2970.6,2969.3,0.79373043]
[1766727233605,0.17266623,2970.6,2969.3,0.79373043]
[1766727239513,0.17266623,2970.6,2969.1,2.25386061]
[1766727241929,0.17266623,2970.6,2969.1,1.46013018]
[1766727245026,9.163,2970.5,2969.1,1.46013018]
[1766727262647,0.17266623,2970.6,2969.1,2.25258139]
[1766727262849,9.28,2970.5,2969.1,2.25258139]
[1766727267750,0.17266623,2970.6,2969.1,2.25258139]
[1766727276056,0.17266623,2970.6,2969.1,1.46013018]
[1766727276260,0.16847,2970.5,2969.1,1.46013018]
[1766727276554,0.16847,2970.5,2969.2,4.79]
[1766727290059,0.16847,2970.5,2969.2,5.58245121]
[1766727298161,0.16847,2970.5,2969.2,4.79]
[1766727300867,0.00420623,2970.6,2969.2,4.79]
[1766727301972,0.00420623,2970.6,2969.6,0.79220984]
[1766727307269,0.16844,2971.0,2969.9,0.79220984]
[1766727308273,0.17221369,2971.0,2969.9,0.79220984]
[1766727310081,0.17221369,2971.0,2969.2,4.95854]
[1766727310383,0.17221369,2971.0,2969.6,0.79220984]
[1766727311273,0.79220984,2970.9,2969.4,0.79220984]
[1766727311478,0.96065984,2970.9,2969.4,5.58820984]
[1766727311682,0.96065984,2970.9,2969.4,0.79220984]
[1766727312078,0.79220984,2970.6,2969.1,7.04834002]
[1766727313879,0.79220984,2970.6,2969.1,2.25234002]
[1766727314080,0.79220984,2970.6,2969.1,7.05334002]
[1766727318694,0.16848,2970.4,2969.1,0.0050517]
[1766727318990,0.16848,2970.4,2969.1,4.8120517]
[1766727329199,0.16848,2970.4,2969.2,0.79220984]
[1766727329404,0.00377369,2971.0,2969.5,0.79220984]
[1766727329601,0.17221369,2971.0,2969.8,0.79220984]
[1766727332607,0.17221369,2971.0,2969.5,0.79220984]
[1766727333013,0.79220984,2970.9,2969.2,0.79220984]
[1766727333201,0.17221369,2971.0,2969.2,0.79220984]
[1766727333402,0.79220984,2970.9,2969.2,0.79220984]
[1766727333602,0.79220984,2970.9,2969.5,0.79220984]
[1766727336810,0.17221369,2971.0,2969.5,0.79220984]
[1766727349014,0.17221369,2971.0,2969.3,0.16854]
[1766727349314,0.17221369,2971.0,2969.9,0.79220984]
[1766727352414,0.17221369,2971.0,2969.3,1.64701229]
[1766727352415,0.17221369,2971.0,2969.6,0.79220984]
[1766727352716,0.17221369,2971.0,2969.3,0.16854]
[1766727353020,0.79220984,2970.9,2969.3,0.16854]
[1766727355619,0.79220984,2970.9,2969.5,0.79220984]
[1766727356313,0.79220984,2970.9,2969.3,0.16854]
[1766727357723,0.79220984,2970.9,2969.5,0.79220984]
[1766727360223,0.79220984,2970.9,2969.3,1.65779685]
[1766727360825,0.79220984,2970.9,2969.3,0.16854]
[1766727362115,0.79220984,2970.9,2969.4,5.63220984]
[1766727364024,0.17221369,2971.0,2969.4,4.84]
[1766727368830,0.16845,2970.9,2969.4,4.84]
[1766727369229,0.79223813,2970.6,2969.1,0.0050517]
[1766727369430,0.16847,2970.4,2969.1,0.0050517]
[1766727383546,0.16848,2970.3,2969.1,0.0050517]
[1766727383733,0.16849,2970.2,2969.1,0.0050517]
[1766727383934,0.79601182,2971.0,2968.4,1.48707227]
[1766727383935,0.1685,2969.9,2968.4,1.48707227]
[1766727384536,0.16851,2969.8,2968.4,1.48707227]
[1766727384946,0.0050517,2969.5,2968.9,0.0050517]
[1766727385336,0.0050517,2969.5,2968.4,0.00236067]
[1766727386354,0.0050517,2969.5,2968.7,0.0050517]
[1766727389847,0.0050517,2969.5,2968.4,0.00236067]
[1766727390945,0.0050517,2969.5,2968.7,0.0050517]
[1766727391648,0.0050517,2969.5,2967.7,4.857]
[1766727392846,0.1735817,2969.5,2968.3,0.0050517]
[1766727402558,0.0050517,2969.5,2968.3,0.0050517]
[1766727419261,0.1685,2969.9,2968.3,0.0050517]
[1766727420270,0.0050517,2969.4,2968.3,0.0050517]
[1766727420967,0.1685,2969.9,2968.3,0.0050517]
[1766727421471,9.257,2970.4,2968.5,0.79223813]
[1766727421769,9.257,2970.4,2968.3,0.1736417]
[1766727421967,0.0050517,2969.6,2968.3,0.1736417]
[1766727422369,0.16847,2970.5,2968.4,0.16859]
[1766727422570,0.16847,2970.5,2968.6,0.79223813]
[1766727423263,0.16847,2970.5,2968.4,0.16859]
[1766727423472,0.0050517,2969.7,2968.4,0.16859]
[1766727424066,0.0050517,2969.7,2968.9,0.7926083]
[1766727427467,0.7926083,2970.4,2968.9,0.7926083]
[1766727429175,0.16847,2970.5,2969.2,0.7926083]
[1766727432971,0.16847,2970.5,2969.0,0.7926083]
[1766727434175,0.16847,2970.5,2969.3,0.7926083]
[1766727439581,0.9610783,2970.5,2969.0,0.7926083]
[1766727440484,0.7926083,2970.2,2968.7,13.79476313]
[1766727441484,0.7926083,2970.2,2968.7,13.00215483]
[1766727441684,0.9610983,2970.2,2968.7,13.00215483]
[1766727448287,0.9610983,2970.2,2968.9,0.7926083]
[1766727453694,0.9610983,2970.2,2968.7,13.00215483]
[1766727461206,0.16849,2970.1,2968.7,13.00215483]
[1766727461409,0.7926083,2969.9,2968.7,13.00215483]
[1766727469215,0.7926083,2969.6,2968.3,0.0050517]
[1766727469418,0.9611183,2969.8,2968.4,4.954]
[1766727470606,0.16851,2969.7,2968.3,0.0050517]
[1766727470913,0.16851,2969.7,2968.4,4.944]
[1766727472121,0.16852,2969.6,2968.3,0.0050517]
[1766727472314,0.7926083,2969.4,2968.3,0.0050517]
[1766727473916,0.16852,2969.6,2968.3,0.0050517]
[1766727474114,0.16852,2969.6,2968.6,0.7926083]
[1766727475521,0.16852,2969.6,2968.3,0.79766]
[1766727480922,0.16849,2970.2,2968.9,0.7926083]
[1766727481930,0.16849,2970.1,2968.9,0.7926083]
[1766727482127,0.16849,2970.1,2968.6,0.7926083]
[1766727485534,0.16849,2970.1,2968.3,1.46734364]
[1766727485733,0.9610983,2970.1,2968.6,0.7926083]
[1766727486037,0.16849,2970.1,2968.4,4.95]
[1766727507554,1.10542885,2970.0,2968.4,4.95]
[1766727507755,0.1685,2969.9,2968.3,1.46734364]
[1766727508452,0.16851,2969.8,2968.3,1.46734364]
[1766727508755,1.10547326,2969.7,2968.3,1.46734364]
[1766727508950,0.16851,2969.7,2968.3,1.46734364]
[1766727512861,0.93571288,2969.6,2968.3,0.0050517]
[1766727513160,0.16853,2969.4,2968.3,0.0050517]
[1766727518047,0.16854,2969.3,2968.3,0.0050517]
[1766727528261,0.16854,2969.3,2967.7,0.00329943]
[1766727529266,0.0050517,2968.8,2968.2,0.0050517]
[1766727529460,0.00891987,2968.8,2968.2,0.0050517]
[1766727532568,0.00891987,2968.8,2967.7,0.00329943]
[1766727533457,0.00891987,2968.8,2968.0,0.0050517]
[1766727535564,0.16854,2969.3,2968.0,0.0050517]
[1766727536572,0.0050517,2968.9,2968.0,0.0050517]
[1766727538168,0.16854,2969.2,2968.0,0.0050517]
[1766727539774,0.0028382,2969.3,2968.0,0.0050517]
[1766727548085,0.0028382,2969.3,2968.3,0.79292185]
[1766727549785,0.0028382,2969.3,2968.0,0.79797355]
[1766727552883,1.8158092,2970.9,2968.3,0.79292185]
[1766727553085,0.16846,2970.6,2969.4,0.79292185]
[1766727553280,0.16846,2970.6,2969.7,0.0050517]
[1766727553979,0.17153392,2970.6,2969.7,0.0050517]
[1766727555986,0.96445577,2970.6,2969.7,0.0050517]
[1766727561888,0.79292185,2970.3,2968.6,3.57957]
[1766727562087,0.79292185,2970.0,2968.4,0.79292185]
[1766727562890,0.0050517,2969.5,2968.9,0.0050517]
[1766727566482,9.59540185,2970.3,2968.9,0.0050517]
[1766727568591,0.16849,2970.2,2968.9,0.0050517]
[1766727568894,0.79292185,2970.0,2968.9,0.0050517]
[1766727569195,0.16849,2970.2,2969.0,0.79292185]
[1766727569592,0.79599577,2970.6,2969.0,0.79292185]
[1766727569795,0.00307392,2970.6,2969.3,0.79292185]
[1766727569992,0.00307392,2970.6,2969.0,0.79292185]
[1766727581902,0.79292185,2970.5,2969.0,0.79292185]
[1766727582204,9.178,2970.4,2969.0,0.79292185]
[1766727584317,0.79292185,2970.3,2969.0,0.79292185]
[1766727585410,0.79292185,2970.3,2968.9,0.0050517]
[1766727594620,9.34648,2970.4,2969.1,0.79292185]
[1766727595012,0.16848,2970.4,2969.4,0.79292185]
[1766727596924,0.00307392,2970.6,2969.4,0.79292185]
[1766727597723,0.00307392,2970.6,2969.3,0.79292185]
[1766727607731,0.79599577,2970.6,2969.3,0.79292185]
[1766727607922,0.79599577,2970.6,2968.9,0.0050517]
[1766727607923,0.93710477,2970.5,2968.9,0.0050517]
[1766727608125,0.00307392,2970.6,2968.9,0.0050517]
[1766727608327,0.93710277,2970.5,2968.9,0.0050517]
[1766727608528,0.00307392,2970.6,2968.9,0.0050517]
[1766727608734,0.93710612,2970.5,2968.9,0.0050517]
[1766727608935,0.00307392,2970.6,2968.9,0.0050517]
[1766727609132,0.93710378,2970.5,2968.9,0.0050517]
[1766727609324,0.00307392,2970.6,2968.9,0.0050517]
[1766727609525,0.93710356,2970.5,2968.9,0.0050517]
[1766727609726,0.00307392,2970.6,2968.9,0.0050517]
[1766727609934,0.93710539,2970.5,2968.9,0.0050517]
[1766727610236,0.17153392,2970.6,2968.9,0.0050517]
[1766727610435,0.93710371,2970.5,2968.9,0.0050517]
[1766727610734,0.17153392,2970.6,2968.9,0.0050517]
[1766727610924,0.93723543,2970.5,2968.9,0.0050517]
[1766727611125,0.17153392,2970.6,2968.9,0.0050517]
[1766727611334,0.93727711,2970.5,2968.9,0.0050517]
[1766727611535,0.17153392,2970.6,2968.9,0.0050517]
[1766727611736,0.93726606,2970.5,2968.9,0.0050517]
[1766727612035,0.17153392,2970.6,2968.9,0.0050517]
[1766727612338,0.93726621,2970.5,2968.9,0.0050517]
[1766727612534,0.16847,2970.5,2968.9,0.0050517]
[1766727612936,0.93723874,2970.4,2968.9,0.0050517]
[1766727613135,0.16847,2970.5,2968.9,0.0050517]
[1766727613438,0.16848,2970.3,2968.9,0.0050517]
[1766727614840,0.79261402,2970.4,2968.9,0.0050517]
[1766727614841,1.10575113,2970.2,2968.9,0.0050517]
[1766727615034,0.16849,2970.2,2968.9,0.0050517]
[1766727663363,0.00307392,2970.6,2968.9,0.0050517]
[1766727669984,0.7955969,2970.6,2969.1,0.79252298]
[1766727672585,0.00307392,2970.6,2969.1,0.79252298]
[1766727674494,0.17153392,2970.6,2969.1,0.79252298]
[1766727674783,0.79252298,2970.4,2968.9,0.0050517]
[1766727677178,0.16848,2970.3,2968.9,0.0050517]
[1766727677384,0.79252298,2969.8,2968.9,0.0050517]
[1766727678891,0.96101298,2970.1,2968.9,0.0050517]
[1766727682996,0.16849,2970.1,2968.9,0.0050517]
[1766727683195,0.96101298,2970.1,2968.9,0.0050517]
[1766727684595,0.1685,2970.0,2968.9,0.0050517]
[1766727693205,0.1685,2970.0,2968.3,2.42673715]
[1766727694204,0.0050517,2969.4,2968.9,0.0050517]
[1766727706616,0.1685,2970.0,2968.9,0.79757468]
[1766727708208,0.1685,2970.0,2968.9,0.0050517]
[1766727710110,0.16853,2969.5,2967.7,0.17192943]
[1766727710315,0.79252298,2969.1,2967.7,0.17192943]
[1766727710511,0.79252298,2969.4,2967.8,0.79252298]
[1766727710710,0.16853,2969.5,2968.1,0.79252298]
[1766727710916,0.16853,2969.5,2968.4,0.79252298]
[1766727711215,0.0050517,2969.2,2968.7,0.0050517]
[1766727712808,1.21053947,2970.4,2968.7,0.79757468]
[1766727713011,0.79252298,2970.1,2968.7,0.79757468]
[1766727713410,0.96101298,2970.1,2968.7,0.79757468]
[1766727713610,0.16849,2970.1,2968.7,0.79757468]
[1766727716011,0.79252298,2969.9,2968.7,0.0050517]
[1766727721319,0.79252298,2970.0,2968.7,0.0050517]
[1766727722418,9.92452298,2970.0,2968.7,0.0050517]
[1766727723828,10.09302298,2970.0,2968.7,0.0050517]
[1766727729931,9.3005,2970.0,2968.7,0.0050517]
[1766727735435,0.1685,2970.0,2968.7,0.0050517]
[1766727735727,9.219,2969.9,2968.7,0.0050517]
[1766727742538,9.3875,2969.9,2968.7,0.0050517]
[1766727743431,0.1685,2969.9,2968.7,0.0050517]
[1766727743636,9.269,2969.8,2968.7,0.0050517]
[1766727750741,0.1685,2969.9,2968.7,0.0050517]
[1766727750939,9.317,2969.8,2968.7,0.0050517]
[1766727751639,0.1685,2969.9,2968.7,0.0050517]
[1766727771258,1.09979955,2969.8,2968.7,0.0050517]
[1766727771455,0.16851,2969.8,2967.9,0.79285878]
[1766727772564,0.0050517,2969.1,2968.6,0.0050517]
[1766727772744,0.0050517,2969.1,2967.8,1.46707413]
[1766727773959,0.0050517,2969.1,2968.2,0.0050517]
[1766727784864,0.16849,2970.1,2968.2,0.0050517]
[1766727785062,0.92973936,2970.0,2968.2,0.0050517]
[1766727785263,0.92973936,2969.9,2968.2,0.0050517]
[1766727785453,0.16849,2970.1,2968.2,0.0050517]
[1766727785660,0.92975152,2970.0,2968.2,0.0050517]
[1766727785861,0.0050517,2969.4,2968.2,0.0050517]
[1766727789971,0.16849,2970.1,2968.3,0.79285878]
[1766727790167,0.16849,2970.1,2968.4,4.886]
[1766727791975,0.16849,2970.1,2968.8,0.79261585]
[1766727795285,0.79261585,2970.3,2968.8,0.79261585]
[1766727795486,0.79261585,2970.3,2969.1,0.79261585]
[1766727805991,0.16847,2970.5,2969.1,0.79261585]
[1766727807089,0.16847,2970.5,2969.4,0.79261585]
[1766727811988,0.00307392,2970.6,2969.4,0.79261585]
[1766727812189,0.00307392,2970.6,2969.7,0.0050517]
[1766727817087,0.00307392,2970.6,2969.7,0.79766755]
[1766727817589,0.00307392,2970.6,2969.7,0.0050517]
[1766727829596,0.16841,2971.6,2970.5,0.79261585]
[1766727830498,0.17181083,2971.6,2970.5,0.79693328]
[1766727830797,0.00340083,2971.6,2970.8,0.79261585]
[1766727832292,0.00340083,2971.6,2970.5,0.00431743]
[1766727841225,0.79261585,2971.3,2970.5,0.00431743]
[1766727843015,0.79261585,2971.4,2970.5,0.00431743]
[1766727846617,0.79261585,2971.4,2969.9,1.43730875]
[1766727847614,0.79261585,2971.4,2969.9,1.43969401]
[1766727850320,0.96103585,2971.4,2969.9,1.43969401]
[1766727853920,0.16842,2971.4,2969.9,1.43969401]
[1766727884440,0.16842,2971.4,2970.0,4.899]
[1766727884641,0.16842,2971.4,2970.1,4.9]
[1766727886035,0.00340083,2971.6,2970.1,4.9]
[1766727890739,0.00340083,2971.6,2970.1,6.34292781]
[1766727892348,0.00340083,2971.6,2970.1,4.9]
[1766727892650,0.00340083,2971.6,2970.1,6.36321086]
[1766727893146,0.00340083,2971.6,2970.1,4.9]
[1766727893348,0.00340083,2971.6,2970.1,6.36321086]
[1766727895246,0.00340083,2971.6,2970.1,4.9]
[1766727896450,0.17181083,2971.6,2970.1,4.9]
[1766727896655,0.17181083,2971.6,2970.2,4.904]
[1766727900155,0.92279162,2971.5,2970.2,4.904]
[1766727900352,0.17181083,2971.6,2970.2,4.904]
[1766727900552,0.92279189,2971.5,2970.2,4.904]
[1766727900748,0.17181083,2971.6,2970.2,4.904]
[1766727900953,0.92274031,2971.5,2970.2,4.904]
[1766727901153,0.17181083,2971.6,2969.9,1.48652917]
[1766727901353,0.17181083,2971.6,2970.0,4.902]
[1766727901354,0.92265406,2971.5,2970.0,4.902]
[1766727901554,0.00340083,2971.6,2970.0,4.902]
[1766727901747,0.92266423,2971.5,2970.0,4.902]
[1766727901947,0.00340083,2971.6,2970.0,4.902]
[1766727902148,0.92266521,2971.5,2970.0,4.902]
[1766727902349,0.00340083,2971.6,2970.0,4.902]
[1766727902546,0.16842,2971.4,2970.0,4.902]
[1766727909773,0.16842,2971.4,2969.9,1.48652917]
[1766727913972,0.16842,2971.4,2970.0,0.79198769]
[1766727930790,0.79198769,2971.2,2969.9,0.00238526]
[1766727931887,0.79198769,2971.2,2969.9,0.79437295]
[1766727934994,0.16842,2971.4,2969.9,0.79437295]
[1766727935190,0.16842,2971.4,2970.2,0.79198769]
[1766727936287,0.16842,2971.4,2970.3,4.966]
[1766727938195,0.00340083,2971.6,2970.3,4.966]
[1766727954006,0.00340083,2971.6,2970.2,0.79198769]
[1766727954206,0.00340083,2971.6,2970.3,4.962]
[1766727958101,0.79538852,2971.6,2970.2,0.79198769]
[1766727958297,0.79538852,2971.6,2969.9,0.79437295]
[1766727958507,0.79198769,2971.3,2969.9,0.79437295]
[1766727958711,0.79198769,2971.3,2969.9,5.75537295]
[1766727958902,0.79198769,2971.4,2969.9,5.75537295]
[1766727975932,0.17181083,2971.6,2969.9,4.96338526]
[1766727981838,0.17181083,2971.6,2969.9,5.13188526]
[1766727982042,0.17181083,2971.6,2969.9,5.92389798]
[1766727982242,0.00340083,2971.6,2969.9,5.92389798]
[1766727983043,0.00340083,2971.6,2970.0,0.16849]
[1766727983743,0.16837,2972.2,2970.3,0.79201272]
[1766727983940,0.92265943,2972.1,2970.4,5.074]
[1766727984240,0.92265943,2972.0,2970.4,5.074]
[1766727984443,0.2186,2972.1,2970.4,5.074]
[1766727984837,0.22232403,2972.1,2970.4,5.074]
[1766727985437,0.22232403,2972.1,2970.7,0.79201272]